[Event "ESP-ch Teams Primera 2022"]
[Site "Sanxenxo Pontevedra"]
[Date "2022.09.20"]
[Round "4.1"]
[White "Bacrot, Etienne"]
[Black "Espinosa Aranda, Angel"]
[Result "1-0"]
[ECO "C41"]
[WhiteElo "2647"]
[BlackElo "2428"]
[Annotator "TA"]
[PlyCount "53"]
[EventDate "2022.09.17"]
[EventType "team-tourn"]
[EventCountry "ESP"]
[SourceTitle "playchess.com"]
[Source "ChessBase"]
[SourceQuality "1"]
[TimeControl "5400+30"]

{[%evp 17,53,45,47,29,30,33,11,12,23,0,0,0,25,34,63,8,0,1,0,0,0,0,41,10,3,13,138,144,145,135,225,210,438,404,923,924,833,639]} 1. e4 {[%emt 0:02:27]} d6 {[%emt 0:00:20]} 2. d4 {[%emt 0:00:24]} Nf6 {[%emt 0:00:10]} 3. Nc3 {[%emt 0:00:04]} e5 {[%emt 0:00:11]} 4. Nf3 {[%emt 0:00:06]} Nbd7 {[%emt 0:00:53]} 5. Bc4 {[%emt 0:00:06]} Be7 {[%emt 0:00:15]} 6. O-O {[%emt 0:00:07]} O-O {[%emt 0:00:50]} 7. a4 {[%emt 0:00:04]} c6 {[%emt 0:00:22]} 8. Re1 {[%emt 0:03:49]} h6 {[%emt 0:03:07]} 9. h3 {[%emt 0:02:23]} Re8 {[%emt 0:01:50] CPLX 2.6 2 (Qd8-c7) (=2)} 10. Be3 {[%emt 0:00:54] CPLX 2.9 18 (a4-a5) (=18). C41: Philidor Defence.} exd4 {[%emt 0:04:38] BESTDEEP 10...exd4 scores better than 10...Qc7.} 11. Bxd4 {[%emt 0:02:48] RECAPT 0 (Qd1xd4) (=9)} Nf8 {[%emt 0:01:54] BESTDEEP} 12. a5 {[%emt 0:05:01] CPLX 3.0 0 (Bd4-e3) (=6). The position is equal.} Be6 {[%emt 0:02:57] CPLX 3.1} 13. Qd3 {[%emt 0:04:42] [#] CPLX 2.9 23 (Nf3-d2) (=10)} N6d7 $146 {[%emt 0:05:42] BESTDEEP} ({Predecessor:} 13... Qc7 14. Be3 N6d7 15. Ne2 Ne5 16. Nxe5 dxe5 17. Qc3 Bxc4 18. Qxc4 Ne6 19. Red1 b5 20. axb6 axb6 {1-0 (58) Van Foreest,L (2532)-Berkes,F (2676) Terme Catez 2021}) 14. Ne2 {[%emt 0:15:11][%cal Bc3e2,Be2f4,Bf4h5][%mdl 32] BESTDEEP} Qc7 {[%emt 0:13:08] CPLX 2.9 25 (Nd7-c5) (=5)} 15. Nf4 {[%emt 0:11:56] CPLX 2.9} Bf6 {[%emt 0:05:48] CPLX 3.2 29 (Be6xc4) (=8)} 16. c3 {[%emt 0:10:43] White is much more active. RELBLUND 55 (Nf4xe6) (=14)} (16. Nxe6 $14 Nxe6 17. Bxf6 Nxf6 18. Bxe6 Rxe6 19. Nd4) 16... Bxc4 $11 {[%emt 0:11:55] CPLX 3.0} 17. Qxc4 {[%emt 0:00:04] RECAPT} Ne6 {[%emt 0:00:11] CPLX 3.6} 18. Nh5 {[%emt 0:05:20] CPLX 3.2 0 (Nf4xe6) (=11)} Nxd4 {[%emt 0:11:16] BESTDEEP} 19. Nxd4 {[%emt 0:01:36] RECAPT} Re5 {[%emt 0:02:07] CPLX 3.5 41 (Bf6xd4) (=9)} 20. Nf5 {[%emt 0:05:05] MISS-Nh5xf6 31 (Nh5xf6) (=12)} d5 {[%emt 0:11:13] EASY} 21. Qd3 {[%emt 0:00:49] [#] Black must now prevent Qg3. BESTDEEP} (21. Nxf6+ Nxf6 22. Qd4 Nxe4 23. Nxh6+ gxh6 $17) 21... Rxe4 {[%emt 0:01:09] MISSDEEP-g7-g6 125 (g7-g6) (=17)} (21... g6 $1 $11 {keeps the balance.} 22. Qg3 (22. Nxh6+ Kh7 $11) 22... Bd8) 22. Rxe4 $16 {[%emt 0:03:40] RECAPT} dxe4 {[%emt 0:00:05] RECAPT} 23. Qxe4 {[%emt 0:00:09] aiming for Qg4. RECAPT} ({Not} 23. Qxd7 $2 Qxd7 24. Nxf6+ gxf6 $19) 23... Kh8 {[%emt 0:06:57] CPLX 2.8 90 (Ra8-d8) (=21)} (23... Rd8 $16 24. a6 (24. Qg4 g6 $16) 24... bxa6) 24. Rd1 $40 {[%emt 0:12:59][%mdl 128] White has strong attack. BESTDEEP} Nc5 $2 {[%emt 0:01:49] [#] CPLX 2.8 228 (Ra8-d8) (=34)} (24... Rd8 {was necessary.} 25. a6 bxa6) 25. Qg4 {[%emt 0:04:53] CPLX 3.2=>BLUNDERREACT} Qe5 {[%emt 0:00:11] EVAL 400 (Bf6-e5) (=55)} (25... Be5 $142 26. f4 (26. Nfxg7 Rg8 $16) 26... g6) 26. f4 {[%emt 0:01:06] EVAL} Qe6 {[%emt 0:02:51] EVAL 0 (Qe5-b8) (=52)} 27. Nhxg7 {[%emt 0:00:24] Weighted Error Value: White=0.12 (very precise) /Black=0.38} 1-0

[Event "ESP-ch Teams Primera 2022"]
[Site "Sanxenxo Pontevedra"]
[Date "2022.09.20"]
[Round "4.2"]
[White "Rubio Mejia, Luis Ignacio"]
[Black "Naiditsch, Arkadij"]
[Result "0-1"]
[ECO "E91"]
[WhiteElo "2399"]
[BlackElo "2666"]
[Annotator "TA"]
[PlyCount "78"]
[EventDate "2022.09.17"]
[EventType "team-tourn"]
[EventCountry "ESP"]
[SourceTitle "playchess.com"]
[Source "ChessBase"]
[SourceQuality "1"]
[TimeControl "5400+30"]

{[%evp 21,78,41,40,31,33,26,47,40,53,59,85,74,85,88,77,84,84,80,75,72,117,52,50,-63,-37,-54,25,-92,-114,-163,-158,-158,-170,-174,-170,-254,-258,-292,-286,-279,-197,-284,-297,-291,-165,-461,-442,-447,-443,-450,-459,-441,-19,-437,-430,-29995,-5235,-29996,-29997]} 1. d4 Nf6 2. c4 g6 3. Nc3 Bg7 4. e4 d6 5. Nf3 O-O 6. Be2 Na6 7. O-O e5 8. Re1 Qe8 9. Bf1 Bg4 10. d5 Nb4 11. Be2 {11.a3 might become the main line.} a5 {CPLX 2.4} 12. Rb1 {CPLX 2.4 9 (h2-h3) (=9). E94: King's Indian: Classical: 6 Be2 e5 7 0-0: Various Black 7th moves.} Na6 {BESTDEEP} 13. Bg5 {CPLX 2.1 7 (Bc1-e3) (=8)} h6 {[#] CPLX 2.3 21 (b7-b6) (=7)} 14. Be3 $146 {CPLX 2.5. White is slightly better.} ({Predecessor:} 14. Bxf6 Bxf6 15. Nd2 Bd7 16. Bg4 Bg5 17. Bxd7 Qxd7 18. Nf3 Be7 19. Na4 f5 20. a3 fxe4 21. Rxe4 {1-0 (47) Doettling,F (2541)-Souleidis,G (2421) Germany 2008}) 14... Bd7 {CPLX 2.2 13 (Na6-c5) (=9)} 15. Nd2 {BESTDEEP} Nh7 {CPLX 2.0 26 (b7-b6) (=12)} 16. a3 {CPLX 2.0} f5 {BESTDEEP} 17. f3 $1 {DEEPSTRONG} a4 {BESTDEEP} 18. Nb5 {BESTDEEP} f4 {CPLX 2.4} 19. Bf2 {EASY} g5 {BESTDEEP} 20. Qxa4 {[%cal Oc4c5] BESTDEEP} h5 {CPLX 2.5 45 (Qe8-g6) (=11)} 21. Kh1 {CPLX 2.6 65 (c4-c5) (=8)} (21. c5 $16) 21... g4 $14 {BESTDEEP} 22. Nf1 {RELBLUND 113 (Re1-c1) (=18)} ({Better is} 22. Rec1 $14) 22... Qg6 {CPLX 2.8 26 (Bg7-f6) (=11)} (22... Nc5 23. Qd1 Qd8 24. Nd2 $16) 23. b4 {CPLX 2.9 17 (Qa4-d1) (=18)} h4 {RELBLUND 79 (Bg7-f6) (=16)} (23... Bf6 $15) 24. fxg4 {RELBLUND 117 (Bf2xh4) (=25)} (24. Bxh4 $11 {was the only way to keep the balance.} Qh6 25. Bf2 (25. Be7 $2 Rf7 $19)) 24... h3 $1 $17 {Black continues to play with concentration. CPLX 3.3=>BLUNDERREACT} 25. Qb3 {CPLX 3.7 49 (Nf1-d2) (=27)} (25. gxh3 $2 Qxe4+ 26. Kg1 Ng5 $19) (25. Nd2 $17 hxg2+ 26. Kxg2) 25... hxg2+ $19 {CPLX 3.4} (25... Bxg4 26. Bxg4 hxg2+ 27. Kxg2 Qxg4+ 28. Kh1 $11) 26. Kxg2 {[#] RECAPT} Ng5 $1 {And now ...f3+ would win. DEEPSTRONG} (26... Qxe4+ 27. Bf3 Qg6 28. h3 $11) (26... Bxg4 27. Bxg4 Qxg4+ 28. Kh1 $11) 27. Nd2 {Against f3+. CPLX 5.0 4 (Be2-d1) (=24)} f3+ $1 {[%mdl 64] Deflection. EASY} (27... Nxe4 28. Nxe4 Qxe4+ 29. Bf3 $14) 28. Nxf3 {CPLX 5.5 84 (Be2xf3) (=27)} (28. Bxf3 {was the only defense.} Nxf3 29. Nxf3) 28... Nxe4 {DEEPSTRONG=>BLUNDERREACT} ({Inferior is} 28... Qxe4 29. Qe3 Bxg4 30. Qxe4 Nxe4 31. h3 $11) 29. Bg3 {Nh4 is the strong threat. CPLX 5.3 34 (Qb3-e3) (=28)} Qxg4 {BESTDEEP} ({Less strong is} 29... Nxg3 30. hxg3 e4 31. Nfd4 $14) 30. Ng1 {BESTDEEP} Rf2+ {BESTDEEP} ({Weaker is} 30... Qg6 31. Nf3 Qh6 32. Kg1 $19) 31. Kh1 {[#] LEGAL} Qg6 {BESTDEEP} 32. Qe3 {BESTDEEP} Raf8 {Chess con chili. CPLX 5.7 126 (Bg7-h6) (=15)} (32... Bh6 $142 33. Bh5 Qxh5 34. Qxe4 Bf5) 33. Bd3 $2 {MISSDEEP-Rb1-b3 296 (Rb1-b3) (=36)} (33. Rb3 {might work better.}) 33... Nxg3+ {EASY} 34. Qxg3 {RECAPT} Qxg3 {RECAPT} 35. hxg3 {RECAPT} R8f6 {[%cal Bf8f6,Bf6h6,Bh6h2][%mdl 32] aiming for ...Rh6+. CPLX 3.5} 36. Ne2 {EASY} Rh6+ $40 {[%mdl 128] Black attacks. CPLX 4.2} 37. Kg1 {LEGAL} Rhh2 {( -> ...Rfg2+). EASY} 38. Nbc3 {MISSDEEP-Bd3-e4 400 (Bd3-e4) (=44)} (38. Be4 $19 Rxe2 39. Nc3) 38... Rfg2+ {DEEPSTRONG=>BLUNDERREACT} 39. Kf1 {LEGAL} Bh3 {[%csl LRe2,LRg3] Weighted Error Value: White=0.55/Black=0.15 (very precise)} 0-1

[Event "ESP-ch Teams Primera 2022"]
[Site "Sanxenxo Pontevedra"]
[Date "2022.09.20"]
[Round "4.3"]
[White "Ponomariov, Ruslan"]
[Black "Almagro Llamas, Pablo"]
[Result "1/2-1/2"]
[ECO "B90"]
[WhiteElo "2640"]
[BlackElo "2407"]
[Annotator "TA"]
[PlyCount "80"]
[EventDate "2022.09.17"]
[EventType "team-tourn"]
[EventCountry "ESP"]
[SourceTitle "playchess.com"]
[Source "ChessBase"]
[SourceQuality "1"]
[TimeControl "5400+30"]

{[%evp 12,80,14,5,20,18,12,18,13,17,20,13,16,18,3,0,0,-30,-21,-27,-24,-35,-5,-17,0,-2,0,0,0,0,0,-61,-47,-110,-108,-124,0,-9,-6,-7,-10,-23,-33,-186,-196,-186,-191,-186,-197,-202,-121,-148,-100,-173,-123,-123,-119,-123,-127,-143,-40,-40,-55,-71,-63,-78,0,-45,0,-79,0]} 1. e4 {[%emt 0:00:03]} c5 {[%emt 0:00:15]} 2. Nf3 {[%emt 0:00:25]} d6 {[%emt 0:00:14]} 3. d4 {[%emt 0:00:16]} cxd4 {[%emt 0:00:10]} 4. Nxd4 {[%emt 0:00:03]} Nf6 {[%emt 0:00:12]} 5. Nc3 {[%emt 0:00:08]} a6 {[%emt 0:00:09]} 6. h3 {[%emt 0:04:22]} e6 {[%emt 0:01:08]} 7. g4 {[%emt 0:00:13] BESTDEEP} d5 {[%emt 0:01:11] CPLX 2.2 15 (b7-b5) (=15). B81: Sicilian Scheveningen: Keres Attack.} 8. Nde2 {[%emt 0:02:26] CPLX 2.5 2 (e4xd5) (=1)} Bc5 {[%emt 0:13:10] BESTDEEP} 9. exd5 {[%emt 0:11:12] BESTDEEP} Qb6 {[%emt 0:02:18] BESTDEEP. The position is equal.} 10. Be3 {[%emt 0:01:07] BESTDEEP} Bxe3 {[%emt 0:00:13] EASY} 11. fxe3 {[%emt 0:00:04] Threatening Qd4. RECAPT} Qxb2 {[%emt 0:07:47] DEEPSTRONG} 12. Rb1 {[%emt 0:02:39] CPLX 2.7 0 (d5xe6) (=0)} Qa3 {[%emt 0:01:22] [#] EASY} 13. e4 $146 {[%emt 0:00:20] CPLX 2.7 3 (Bf1-g2) (=1)} ({Predecessor:} 13. dxe6 Bxe6 14. Bg2 Nc6 15. Rxb7 Na5 16. Rb3 Nxb3 17. Bxa8 O-O 18. Bg2 Na5 19. O-O {½-½ (28) Schmidt,J-Koestner,W (2306) GER email 2018}) 13... O-O {[%emt 0:17:09] BESTDEEP} 14. Bg2 {[%emt 0:00:37] CPLX 2.7 30 (Qd1-d4) (=4)} e5 {[%emt 0:11:44] Against Qd4. BESTDEEP} 15. O-O {[%emt 0:02:41] CPLX 2.6 6 (Qd1-d2) (=5)} Ne8 {[%emt 0:01:39] CPLX 3.1 3 (Nb8-d7) (=2)} 16. Rf3 $1 {[%emt 0:01:48] DEEPSTRONG} Qc5+ {[%emt 0:02:00] CPLX 3.0 30 (Nb8-d7) (=5)} 17. Kh2 {[%emt 0:00:14] Strongly threatening Na4. CPLX 2.5 12 (Kg1-h1) (=5)} b5 {[%emt 0:00:14] Inhibits Na4. CPLX 2.8 17 (Nb8-d7) (=6)} 18. a4 {[%emt 0:03:51][%cal Ra4b5] CPLX 2.8} Nd6 {[%emt 0:02:51] CPLX 3.1 2 (Bc8-d7) (=6)} 19. Qg1 {[%emt 0:04:48] BESTDEEP} Qxg1+ {[%emt 0:00:47] BESTDEEP} 20. Kxg1 {[%emt 0:00:03][%cal Ra4b5] RECAPT} ({But not} 20. Rxg1 b4 21. Nd1 (21. Na2 a5 $17) 21... a5 $17) 20... Bd7 {[%emt 0:00:35] BESTDEEP} 21. Bf1 {[%emt 0:08:46] RELBLUND 61 (a4xb5) (=8)} (21. axb5 $11 axb5 22. Ng3) 21... Rc8 {CPLX 2.2 14 (Nd6-c4) (=5)} 22. Nc1 {[%emt 0:01:14] CPLX 2.3 63 (Ne2-g3) (=11)} (22. Ng3 $15) 22... bxa4 $17 {[%emt 0:15:46][%cal Od7b5] CPLX 2.4} 23. Rb6 {[%emt 0:02:58] [#] Against Bb5. CPLX 2.3 16 (Rb1-a1) (=11)} Nb5 {[%emt 0:02:13] MISSDEEP-Nd6-c4 124 (Nd6-c4) (=12)} (23... Nc4 $1 $17 {[%cal Rc4b6]} 24. Bxc4 Rxc4) 24. Nxa4 $11 {[%emt 0:05:28] BESTDEEP=>BLUNDERREACT} ({Of course not} 24. Nxb5 axb5 25. Ra3 Rxc2 $17) 24... Rxc2 {[%emt 0:04:11] EASY} 25. Nb3 {[%emt 0:00:06] CPLX 3.5} Be8 {[%emt 0:03:19] BESTDEEP} 26. Bxb5 {[%emt 0:08:41] CPLX 2.9 13 (Bf1-d3) (=10)} axb5 {[%emt 0:02:13] RECAPT} 27. Rc3 $2 {[%emt 0:00:24] RELBLUND 153 (Na4-c5) (=17)} (27. Nac5 $15) 27... bxa4 $19 {[%emt 0:04:51] CPLX 3.3=>BLUNDERREACT} 28. Rxc2 {[%emt 0:00:05] Hoping for Rc8. EASY} Nd7 {[%emt 0:00:06] EASY} ({Resist} 28... axb3 29. Rc8 Kf8 30. Rbxb8 Rxb8 31. Rxb8 $18) 29. Rb4 {[%emt 0:00:05] Threatens to win with Nd2. CPLX 3.0 0 (Rb6-b7) (=16)} axb3 {[%emt 0:00:06] EASY} 30. Rxb3 {[%emt 0:00:04] RECAPT 5 (Rc2-c3) (=15)} Kf8 {[%emt 0:01:42] CPLX 2.6 81 (Nd7-f6) (=12)} ({Better is} 30... Nf6 $19 31. Rc4 Bd7) 31. Rc4 $17 {[%emt 0:00:38] DEEPSTRONG=>BLUNDERREACT} Ke7 {[%emt 0:00:49] CPLX 2.6 48 (h7-h5) (=13)} (31... h5 $142 32. Kf2 hxg4 33. hxg4 g5) 32. Kf2 {[%emt 0:00:10] [#] CPLX 2.8 73 (Rb3-b7) (=17)} (32. Rb7 $17) 32... Nf6 {[%emt 0:02:24] CPLX 2.8 50 (h7-h6) (=15)} (32... h6 $1 $19 {White must now prevent ...Nf6.} 33. Rc7 Kd8) 33. g5 {[%emt 0:01:02] DEEPSTRONG} Nd7 {[%emt 0:00:06] BESTDEEP} 34. h4 {[%emt 0:00:28] CPLX 2.8 4 (Rb3-b7) (=16)} f6 {[%emt 0:02:11] CPLX 2.9} 35. Rb7 {[%emt 0:01:14] CPLX 3.1} fxg5 {[%emt 0:00:50] RELBLUND 103 (Ra8-a2) (=17)} (35... Ra2+ $17 36. Kg3 Ra3+ 37. Kf2 Bh5) 36. hxg5 $15 {[%emt 0:00:02] RECAPT} Ra2+ {[%emt 0:00:54] CPLX 3.1} 37. Kg3 {[%emt 0:00:06] CPLX 3.2} Ra3+ {[%emt 0:00:26] CPLX 3.4} 38. Kf2 {[%emt 0:00:14] CPLX 3.2 15 (Kg3-h2) (=14)} Ra2+ {[%emt 0:00:38] CPLX 3.3 78 (Be8-h5) (=18)} 39. Kg3 {[%emt 0:00:04] CPLX 3.2} Ra3+ {[%emt 0:01:29] CPLX 3.4 45 (Ke7-d8) (=18)} 40. Kf2 $1 {[%emt 0:00:05] DEEPSTRONG} Ra2+ {[%emt 0:00:36] Weighted Error Value: White=0.15 (very precise) /Black=0.21 (precise)} (40... Bh5 $17) 1/2-1/2

[Event "ESP-ch Teams Primera 2022"]
[Site "Sanxenxo Pontevedra"]
[Date "2022.09.20"]
[Round "4.4"]
[White "Garcia Cuenca, Victor"]
[Black "Franco Alonso, Alejandro"]
[Result "1-0"]
[ECO "E43"]
[WhiteElo "2369"]
[BlackElo "2432"]
[Annotator "ChessBase"]
[PlyCount "70"]
[EventDate "2022.09.17"]
[EventType "team-tourn"]
[EventCountry "ESP"]
[SourceTitle "playchess.com"]
[Source "ChessBase"]
[SourceQuality "1"]
[TimeControl "5400+30"]

1. d4 Nf6 2. c4 e6 3. Nc3 Bb4 4. e3 b6 5. Bd3 Bb7 6. Nf3 Ne4 7. O-O f5 8. Ne2 Be7 9. Nd2 Bd6 10. a3 O-O 11. f4 Be7 12. Nxe4 fxe4 13. Bc2 d5 14. Ng3 Qe8 15. Bd2 Bh4 16. Bb4 Rf7 17. Qh5 Bxg3 18. hxg3 Nd7 19. g4 a5 20. Bd2 Ba6 21. b3 a4 22. Rfc1 Nf6 23. Qh3 axb3 24. Bxb3 Bxc4 25. Bxc4 dxc4 26. Rxc4 Nd5 27. Bb4 Qa4 28. Rac1 Qb3 29. g5 Re8 30. Kf2 g6 31. Rc6 Qd3 32. Re1 Rf5 33. Kg1 Qb3 34. Kf2 Qd3 35. Kg1 Qb3 1-0

[Event "ESP-ch Teams Primera 2022"]
[Site "Sanxenxo Pontevedra"]
[Date "2022.09.20"]
[Round "4.5"]
[White "Gonzalez De La Torre, Santiago"]
[Black "Guadamuro Torrente, Anabel"]
[Result "1-0"]
[ECO "A11"]
[WhiteElo "2439"]
[BlackElo "2102"]
[Annotator "ChessBase"]
[PlyCount "93"]
[EventDate "2022.09.17"]
[EventType "team-tourn"]
[EventCountry "ESP"]
[SourceTitle "playchess.com"]
[Source "ChessBase"]
[SourceQuality "1"]
[TimeControl "5400+30"]

1. c4 {[%emt 0:00:03]} c6 {[%emt 0:00:03]} 2. e4 {[%emt 0:00:06]} e5 {[%emt 0:01:42]} 3. Nf3 {[%emt 0:00:26]} d6 {[%emt 0:00:10]} 4. d4 {[%emt 0:00:06]} Nd7 {[%emt 0:00:13]} 5. Nc3 {[%emt 0:00:06]} Ngf6 {[%emt 0:01:00]} 6. Be2 {[%emt 0:00:07]} g6 {[%emt 0:00:17]} 7. O-O {[%emt 0:04:20]} Bg7 {[%emt 0:00:06]} 8. Re1 {[%emt 0:00:08]} O-O {[%emt 0:00:09]} 9. Bf1 {[%emt 0:00:04]} h6 {[%emt 0:08:13]} 10. g3 {[%emt 0:01:10]} Re8 {[%emt 0:07:06]} 11. d5 {[%emt 0:01:27]} c5 {[%emt 0:00:41]} 12. a3 {[%emt 0:00:08]} Nh7 {[%emt 0:07:10]} 13. Rb1 {[%emt 0:02:55]} f5 {[%emt 0:05:47]} 14. Nh4 {[%emt 0:00:24]} f4 {[%emt 0:15:17]} 15. Nxg6 {[%emt 0:00:27]} Qf6 {[%emt 0:13:08]} 16. Nh4 {[%emt 0:00:31]} Rf8 {[%emt 0:06:04]} 17. Nf5 {[%emt 0:07:13]} Nb6 {[%emt 0:03:33]} 18. g4 {[%emt 0:00:44]} Bxf5 {[%emt 0:00:40]} 19. exf5 {[%emt 0:00:07]} Qh4 {[%emt 0:02:53]} 20. Ne4 {[%emt 0:07:11]} h5 {[%emt 0:08:25]} 21. f3 {[%emt 0:04:29]} Nd7 {[%emt 0:01:25]} 22. Qe2 {[%emt 0:11:25]} hxg4 {[%emt 0:01:43]} 23. fxg4 {[%emt 0:20:26]} f3 {[%emt 0:02:21]} 24. Qf2 {[%emt 0:00:23]} Qxg4+ {[%emt 0:00:13]} 25. Qg3 {[%emt 0:00:09]} Qxg3+ {[%emt 0:11:50]} 26. hxg3 {[%emt 0:00:09]} Rxf5 {[%emt 0:00:19]} 27. Bh3 {[%emt 0:00:17]} Rf7 {[%emt 0:01:11]} 28. Be6 {[%emt 0:00:09]} Raf8 {[%emt 0:01:17]} 29. Kf2 {[%emt 0:00:48]} Kh8 {[%emt 0:00:37]} 30. Bxf7 {[%emt 0:00:37]} Rxf7 {[%emt 0:00:03]} 31. Nxd6 {[%emt 0:05:00]} Rf8 {[%emt 0:00:14]} 32. Re3 {[%emt 0:00:18]} Ng5 {[%emt 0:00:59]} 33. Ne4 {[%emt 0:02:01]} Nh3+ {[%emt 0:01:26]} 34. Kf1 {[%emt 0:00:07]} b6 {[%emt 0:00:31]} 35. b4 {[%emt 0:01:07]} Nf6 {[%emt 0:00:27]} 36. Nxf6 {[%emt 0:00:10]} Bxf6 {[%emt 0:00:35]} 37. Rxf3 {[%emt 0:00:09]} e4 {[%emt 0:00:02]} 38. Rf5 {[%emt 0:00:44]} Kg7 {[%emt 0:00:08]} 39. Kg2 {[%emt 0:00:12]} Kg6 {[%emt 0:00:10]} 40. g4 {[%emt 0:05:22]} Re8 {[%emt 0:01:43]} 41. Kxh3 {[%emt 0:00:32]} e3 {[%emt 0:00:19]} 42. bxc5 {[%emt 0:03:24]} bxc5 {[%emt 0:00:04]} 43. Rf3 {[%emt 0:01:53]} e2 {[%emt 0:00:39]} 44. Bd2 {[%emt 0:00:06]} Bg5 {[%emt 0:00:59]} 45. Bxg5 {[%emt 0:02:37]} e1=Q {[%emt 0:00:26]} 46. Rxe1 {[%emt 0:00:07]} Rxe1 {[%emt 0:00:03]} 47. Bd2 {[%emt 0:00:14]} 1-0

[Event "ESP-ch Teams Primera 2022"]
[Site "Sanxenxo Pontevedra"]
[Date "2022.09.20"]
[Round "4.7"]
[White "Reinaldo Castineira, Roi"]
[Black "Vallejo Pons, Francisco"]
[Result "0-1"]
[ECO "B11"]
[WhiteElo "2496"]
[BlackElo "2711"]
[Annotator "TA"]
[PlyCount "86"]
[EventDate "2022.09.17"]
[EventType "team-tourn"]
[EventCountry "ESP"]
[SourceTitle "playchess.com"]
[Source "ChessBase"]
[SourceQuality "1"]
[TimeControl "5400+30"]

{[%evp 10,86,9,12,25,19,30,-19,-7,-16,-4,-14,-16,-14,-8,-27,-23,-40,-32,-23,-21,-41,-23,-39,-11,-6,-13,-27,-22,-27,-26,-29,-19,-112,-102,-102,-112,-95,-74,-72,-83,-70,-81,-103,-79,-432,-424,-420,-418,-592,-524,-508,-498,-526,-534,-489,-466,-1432,-1412,-1390,-1271,-1243,0,-1241,0,-1096,-1096,-1091,-293,-1056,-1025,-1740,-1746,-1693,-1783,-1273,-1200,-1108,-87]} 1. e4 {[%emt 0:00:33]} c6 {[%emt 0:00:34]} 2. Nc3 {[%emt 0:01:44]} d5 {[%emt 0:00:29]} 3. Nf3 {[%emt 0:00:09]} Bg4 {[%emt 0:00:47]} 4. h3 {[%emt 0:00:07]} Bxf3 {[%emt 0:00:06]} 5. Qxf3 {[%emt 0:00:08]} e6 {[%emt 0:00:06]} 6. Be2 {[%emt 0:02:16]} Bc5 {[%emt 0:06:29] CPLX 2.3 13 (d5-d4) (=13). B11: Caro-Kann: Two Knights Variation.} 7. O-O {[%emt 0:01:40] BESTDEEP} Nf6 {[%emt 0:11:10] CPLX 2.7 11 (Nb8-d7) (=12)} 8. exd5 {[%emt 0:06:05] CPLX 2.8 49 (d2-d3) (=16)} (8. d3 $142) 8... cxd5 $11 {[%emt 0:04:15] [#] RECAPT. The position is equal.} 9. Na4 $146 {[%emt 0:14:03] CPLX 2.5 9 (Be2-b5) (=15)} ({Predecessor:} 9. d4 Bxd4 10. Nb5 Be5 11. Bf4 a6 12. Bxe5 axb5 13. Bxb5+ Nc6 14. Bxf6 Qxf6 15. Qxf6 gxf6 {0-1 (57) Stevens,D-Fisette,R ICCF email 2018}) 9... Be7 {[%emt 0:03:58] BESTDEEP} 10. d4 {[%emt 0:00:11] CPLX 2.2} Nc6 {[%emt 0:01:27] CPLX 2.1 0 (0-0) (=5)} 11. Rd1 {[%emt 0:06:50] CPLX 2.1} O-O {[%emt 0:02:23] CPLX 2.1 6 (Ra8-c8) (=5)} 12. b3 {[%emt 0:04:40] CPLX 2.2 19 (Bc1-e3) (=11)} Ne4 {[%emt 0:11:50] CPLX 2.2} 13. Bb2 {[%emt 0:00:57] CPLX 2.6 17 (c2-c3) (=12)} f5 {[%emt 0:02:54] CPLX 2.5} 14. c4 {[%emt 0:03:10] CPLX 2.5} Bh4 {[%emt 0:15:59] BESTDEEP} 15. g3 {[%emt 0:00:44] CPLX 3.0 20 (Rd1-f1) (=11)} Bf6 {[%emt 0:00:09] CPLX 3.0} 16. Qg2 {[%emt 0:07:06] CPLX 2.7 16 (Ra1-c1) (=12)} (16. Rac1 {with more complications.} f4 17. Nc5 fxg3 18. Nxe6 gxf2+ 19. Kg2) 16... Kh8 {[%emt 0:05:42] CPLX 2.7 28 (Qd8-d6) (=5)} 17. f3 {[%emt 0:04:10] CPLX 2.7} Nd6 {[%emt 0:02:58] CPLX 2.8} 18. Rac1 {[%emt 0:12:22] CPLX 2.4 14 (Kg1-h1) (=11)} Qe7 {[%emt 0:02:38] CPLX 2.4 5 (Ra8-c8) (=5)} 19. Kh2 {[%emt 0:02:34] CPLX 2.4 5 (Na4-c5) (=11)} f4 {[%emt 0:05:19] BESTDEEP} 20. g4 {[%emt 0:00:15] CPLX 2.9} Rad8 {[%emt 0:01:25] CPLX 2.7 10 (Ra8-c8) (=5)} 21. Bd3 {[%emt 0:04:42] RELBLUND 93 (Na4-c5) (=15)} (21. Nc5 $11) 21... Bxd4 {[%emt 0:05:55] CPLX 3.0 10 (d5xc4) (=5)} (21... Nxd4 $6 22. g5 Be5 23. cxd5 $11) (21... dxc4 {feels hotter.} 22. Bxc4 Nxc4 23. Rxc4 Rd5) 22. Bxd4 {[%emt 0:03:20] RECAPT} Nxd4 {[%emt 0:00:06] RECAPT} 23. cxd5 {[%emt 0:00:05] CPLX 3.1} exd5 {[%emt 0:04:13] CPLX 3.1 21 (e6-e5) (=6)} (23... e5 {is interesting.} 24. Qf2 Nf7 25. Nc3 Rd6) 24. Bxh7 {[%emt 0:00:24] [#] CPLX 3.0 0 (Bd3-f1) (=13)} Nxf3+ {[%emt 0:07:38] BESTDEEP} 25. Qxf3 {[%emt 0:00:08] Hoping for Bd3. RECAPT} Kxh7 {[%emt 0:00:09] EASY} 26. Rxd5 {[%emt 0:00:24] CPLX 3.3 22 (Na4-c3) (=13)} Ne4 {[%emt 0:01:50][%cal Bd6e4,Be4g5,Bg5h7][%mdl 32] BESTDEEP} 27. Rcd1 {[%emt 0:07:01][%mdl 8192] MISSDEEP-Na4-c3 353 (Na4-c3) (=28)} (27. Nc3 $17 {is tougher.} Ng5 28. Qd3+ Kg8 29. Rd1) 27... Rxd5 $19 {[%emt 0:00:26] CPLX 3.6=>BLUNDERREACT} 28. Rxd5 {[%emt 0:00:03] RECAPT} Ng5 {[%emt 0:01:03] BESTDEEP} 29. Qd3+ {[%emt 0:00:04] CPLX 3.4 174 (Qf3-f2) (=33)} (29. Qf2 $142 f3 30. Nc5 (30. Qh4+ $2 Kg8 $19)) 29... Kh8 {[%emt 0:00:26] ...f3 is the strong threat. CPLX 3.0 68 (Kh7-g8) (=7)} 30. h4 {[%emt 0:02:23] EASY} Nh7 {[%emt 0:01:36] BESTDEEP} 31. Rh5 {[%emt 0:04:56][%csl Gh5][%cal Rd3h7] CPLX 3.1 28 (Na4-c3) (=32)} g6 $1 {[%emt 0:00:05] EASY} 32. Qd4+ {[%emt 0:02:38] [#] CPLX 4.3} Kg8 $1 {[%emt 0:00:21] DEEPSTRONG} 33. Rh6 {[%emt 0:01:54] CPLX 5.0 400 (Qd4-e5) (=44)} (33. Qe5 $142 Qf7 34. Rh6) 33... Qe2+ {[%emt 0:00:18] EASY} 34. Kh1 {[%emt 0:00:05] CPLX 4.5 0 (Kh2-h3) (=42)} Qf3+ {[%emt 0:00:20] EASY} 35. Kh2 {[%emt 0:00:05] BESTDEEP} Qe2+ {[%emt 0:00:02] CPLX 5.5 400 (Qf3-g3) (=19)} 36. Kh1 $1 {[%emt 0:00:03] DEEPSTRONG} ({Not} 36. Kg1 $2 Qxg4+ 37. Kf2 Nf6 $19) 36... Qf3+ {[%emt 0:00:06] MISSDEEPWIN-Qe2-e1 400 (Qe2-e1) (=31)} 37. Kh2 {[%emt 0:00:04] DEEPSTRONG} ({But not} 37. Kg1 $2 Qxg4+ 38. Kf1 Re8 $19) 37... Qg3+ {[%emt 0:00:10] BESTDEEP} 38. Kh1 {[%emt 0:00:04] LEGAL} Qh3+ {[%emt 0:00:09] DEEPSTRONG} 39. Kg1 {[%emt 0:00:03] LEGAL} Qxg4+ {[%emt 0:00:08] EASY. Black is clearly winning.} 40. Kh1 {[%emt 0:00:49] MISSDEEP-Kg1-f1 400 (Kg1-f1) (=46)} Qh3+ {[%emt 0:01:20] BESTDEEP} 41. Kg1 {[%emt 0:00:04] LEGAL} Qg3+ {[%emt 0:00:17] CPLX 5.4} 42. Kf1 {[%emt 0:00:11] CPLX 5.4} f3 {[%emt 0:01:10] ( -> ...Qg2+). DEEPSTRONG} 43. Qg1 {[%emt 0:00:09] Prevents Qg2+. EASY} Qxg1+ {[%emt 0:00:59] Weighted Error Value: White=0.55/Black=0.45} 0-1